fUST/lending_fUST_20240112
["ID","MTS","AMOUNT","RATE_DAILY","PERIOD"]
[311250660,1704996645727,-502.49238258,0.0003041,2]
[311250662,1704996645736,-500.0,0.0003041,2]
[311250665,1704996645745,-500.0,0.0003041,2]
[311250668,1704996645753,-500.0,0.0003041,2]
[311250671,1704996645762,-204.46283092,0.0003041,2]
[311250673,1704996645771,-500.0,0.0003041,2]
[311250677,1704996645781,-500.0,0.0003041,2]
[311250680,1704996645790,-201.73518869,0.0003041,2]
[311250683,1704996645802,-559.3,0.0003041,2]
[311250685,1704996645812,-500.0,0.0003041,2]
[311250688,1704996645821,-500.0,0.0003041,2]
[311250691,1704996645830,-397.33178559,0.0003041,2]
[311250695,1704996645840,-500.0,0.0003041,2]
[311250698,1704996645849,-500.0,0.0003041,2]
[311250701,1704996645858,-500.0,0.0003041,2]
[311250703,1704996645867,-603.37503213,0.0003041,2]
[311250706,1704996645877,-471.58118241,0.0003041,2]
[311250710,1704996645886,-500.0,0.0003041,2]
[311250712,1704996645895,-500.0,0.0003041,2]
[311250716,1704996645903,-526.31638837,0.0003041,2]
[311250719,1704996645913,-362.62491012,0.0003041,2]
[311250722,1704996645922,-500.0,0.0003041,2]
[311250724,1704996645930,-504.44166871,0.0003041,2]
[311250728,1704996645940,-500.0,0.0003041,2]
[311250729,1704996645949,-500.0,0.0003041,2]
[311250733,1704996645958,-500.0,0.0003041,2]
[311250735,1704996645967,-500.0,0.0003041,2]
[311250738,1704996645976,-518.15706842,0.0003041,2]
[311250741,1704996645985,-500.0,0.0003041,2]
[311250745,1704996645994,-500.0,0.0003041,2]
[311250747,1704996646003,-500.0,0.0003041,2]
[311250750,1704996646013,-533.13,0.0003041,2]
[311250753,1704996646022,-601.02,0.0003041,2]
[311250756,1704996646031,-500.0,0.0003041,2]
[311250758,1704996646039,-500.0,0.0003041,2]
[311250760,1704996646048,-500.0,0.0003041,2]
[311250762,1704996646058,-11782.21583318,0.0003041,2]
[311250781,1704996646216,-359.04862008,0.00029922,2]
[311250783,1704996646227,-890.40495214,0.00029922,2]
[311250785,1704996646236,-384.52562723,0.00029923,2]
[311250787,1704996646245,-2416.97416682,0.0003041,2]
[311250789,1704996646254,-500.0,0.0003041,2]
[311250791,1704996646263,-500.0,0.0003041,2]
[311250793,1704996646272,-29.00585157,0.0003041,2]
[311250795,1704996646284,-470.99414843,0.0003041,2]
[311250797,1704996646292,-500.0,0.0003041,2]
[311250799,1704996646302,-500.0,0.0003041,2]
[311250801,1704996646311,-500.0,0.0003041,2]
[311250803,1704996646320,-584.78,0.0003041,2]
[311250805,1704996646329,-356.88042739,0.0003041,2]
[311250807,1704996646341,-143.11957261,0.0003041,2]
[311250809,1704996646352,-500.0,0.0003041,2]
[311250811,1704996646361,-500.0,0.0003041,2]
[311250813,1704996646370,-156.88042739,0.0003041,2]
[311250825,1704996646468,-336.92095555,0.0003041,2]
[311250827,1704996646480,-6.19861706,0.0003041,2]
[311250829,1704996646489,-500.0,0.0003041,2]
[311250831,1704996646498,-504.47013511,0.0003041,2]
[311250833,1704996646507,-500.0,0.0003041,2]
[311250835,1704996646516,-500.0,0.0003041,2]
[311250837,1704996646525,-169.30489854,0.0003041,2]
[311250839,1704996646537,-4059.50510146,0.0003041,2]
[311250841,1704996646547,-500.0,0.0003041,2]
[311250843,1704996646556,-158.10850089,0.0003041,2]
[311250845,1704996646565,-500.0,0.0003041,2]
[311250847,1704996646574,-500.0,0.0003041,2]
[311250849,1704996646583,-403.93621028,0.0003041,2]
[311250851,1704996646594,-2195.84378972,0.0003041,2]
[311250853,1704996646603,-1851.31,0.0003041,2]
[311250855,1704996646613,-500.0,0.0003041,2]
[311250857,1704996646622,-1186.36,0.0003041,2]
[311250859,1704996646631,-500.0,0.0003041,2]
[311250861,1704996646640,-500.0,0.0003041,2]
[311250863,1704996646649,-500.0,0.0003041,2]
[311250865,1704996646658,-641.14117884,0.0003041,2]
[311250867,1704996646667,-500.0,0.0003041,2]
[311250869,1704996646677,-500.0,0.0003041,2]
[311250872,1704996646688,-500.0,0.0003041,2]
[311250874,1704996646699,-500.0,0.0003041,2]
[311250876,1704996646708,-500.0,0.0003041,2]
[311250878,1704996646717,-500.0,0.0003041,2]
[311250880,1704996646725,-500.0,0.0003041,2]
[311250882,1704996646734,-500.0,0.0003041,2]
[311250884,1704996646746,-653.28,0.0003041,2]
[311250886,1704996646755,-608.52,0.0003041,2]
[311250888,1704996646764,-500.0,0.0003041,2]
[311250890,1704996646773,-7877.03,0.0003041,2]
[311250892,1704996646783,-776.56,0.0003041,2]
[311250894,1704996646791,-967.21,0.0003041,2]
[311250896,1704996646800,-802.5,0.0003041,2]
[311250898,1704996646809,-500.0,0.0003041,2]
[311250900,1704996646817,-235.71792542,0.0003041,2]
[311250902,1704996646826,-500.0,0.0003041,2]
[311250904,1704996646835,-508.3824715,0.0003041,2]
[311250906,1704996646845,-500.0,0.0003041,2]
[311250908,1704996646855,-500.0,0.0003041,2]
[311250910,1704996646864,-500.0,0.0003041,2]
[311250912,1704996646873,-500.0,0.0003041,2]
[311250914,1704996646882,-514.32836231,0.0003041,2]
[311250916,1704996646893,-500.0,0.0003041,2]
[311250918,1704996646901,-1578.69,0.0003041,2]
[311250920,1704996646910,-500.0,0.0003041,2]
[311250922,1704996646920,-735.65,0.0003041,2]
[311250924,1704996646929,-500.0,0.0003041,2]
[311250926,1704996646939,-500.0,0.0003041,2]
[311250928,1704996646948,-550.13592132,0.0003041,2]
[311250930,1704996646958,-671.29,0.0003041,2]
[311250932,1704996646967,-500.0,0.0003041,2]
[311250934,1704996646976,-500.0,0.0003041,2]
[311250936,1704996646985,-500.0,0.0003041,2]
[311250938,1704996646993,-413.03430595,0.0003041,2]
[311250940,1704996647006,-500.0,0.0003041,2]
[311250942,1704996647016,-545.46472902,0.0003041,2]
[311250944,1704996647026,-500.0,0.0003041,2]
[311250946,1704996647035,-504.83972724,0.0003041,2]
[311250948,1704996647044,-500.0,0.0003041,2]
[311250950,1704996647053,-499.16935112,0.0003041,2]
[311250952,1704996647062,-500.0,0.0003041,2]
[311250954,1704996647071,-500.0,0.0003041,2]
[311250956,1704996647082,-2285.66,0.0003041,2]
[311250958,1704996647091,-500.0,0.0003041,2]
[311250960,1704996647100,-1602.65,0.0003041,2]
[311250962,1704996647109,-500.0,0.0003041,2]
[311250964,1704996647118,-500.0,0.0003041,2]
[311250966,1704996647127,-746.406525,0.0003041,2]
[311250968,1704996647137,-746.406525,0.0003041,2]
[311250971,1704996647146,-746.406525,0.0003041,2]
[311250972,1704996647155,-746.406525,0.0003041,2]
[311250974,1704996647165,-3932.02246,0.0003041,2]
[311250976,1704996647174,-3932.02246,0.0003041,2]
[311250978,1704996647183,-3932.02246,0.0003041,2]
[311250980,1704996647192,-2588.85901874,0.0003041,2]
[311250983,1704996647209,-1343.16344126,0.0003041,2]
[311250985,1704996647218,-206.13412813,0.00030539,7]
[311250987,1704996647228,-594.73,0.0003058,5]
[311250989,1704996647237,-198.17,0.0003058,5]
[311250991,1704996647246,-500.0,0.00030659,2]
[311250993,1704996647255,-350.0,0.0003066,7]
[311250995,1704996647265,-204.0,0.0003066,30]
[311250997,1704996647274,-4297.0,0.0003066,30]
[311250999,1704996647284,-12211.0,0.0003066,30]
[311251001,1704996647293,-521.0,0.0003066,30]
[311251003,1704996647302,-350.0,0.0003067,7]
[311251005,1704996647312,-204.0,0.0003067,30]
[311251007,1704996647321,-82.91191021,0.0003067,30]
[311251009,1704996647332,-1637.53249506,0.0003067,30]
[311251012,1704996647343,-292.16,0.0003067,30]
[311251014,1704996647353,-1909.54265131,0.0003067,30]
[311251016,1704996647368,-374.85294342,0.0003067,30]
[311251018,1704996647377,-314.69190962,0.0003067,30]
[311251020,1704996647388,-2977.53268501,0.0003067,30]
[311251023,1704996647398,-7951.7246396,0.0003067,30]
[311251026,1704996647421,-218.70124491,0.00022994,2]
[311251028,1704996647430,-155.12409928,0.00029922,2]
[311251030,1704996647439,-500.0,0.00030136,2]
[311251032,1704996647449,-967.05076577,0.0003067,30]
[311251034,1704996647458,-521.0,0.0003067,30]
[311251036,1704996647467,-238.12389004,0.00030679,2]
[311252890,1704997568501,-292.87321948,0.00022,4]
[311252891,1704997610606,-1000.0,0.00020998,3]
[311252892,1704997610647,-1000.0,0.00020998,3]
[311252893,1704997610687,-1000.0,0.00020998,3]
[311252894,1704997610729,-1000.0,0.00020998,3]
[311252895,1704997610930,-724.56172056,0.00020998,3]
[311252904,1704997661281,280.0,0.000231,7]
[311253013,1704997838184,-293.94213474,0.00018987,2]
[311253020,1704997838239,-28.53491554,0.00018987,2]
[311253022,1704997838249,-976.18563318,0.00018988,2]
[311253024,1704997838258,-155.06512735,0.00018988,2]
[311253026,1704997838267,-173.1743401,0.00018998,2]
[311253028,1704997838276,-270787.85398816,0.00019086,2]
[311253030,1704997838285,-81065.86768714,0.00019087,2]
[311253032,1704997838295,-585.133645,0.00019098,2]
[311253034,1704997838304,-24900.0,0.00019098,2]
[311253036,1704997838313,-161.14649141,0.00019217,2]
[311253038,1704997838322,-1184.1327432,0.00019318,2]
[311253040,1704997838331,-1112.22182837,0.000195,2]
[311253042,1704997838341,-309.70579883,0.0001999,2]
[311253044,1704997838351,-19899.83492691,0.00019994,2]
[311253047,1704997838360,-200.0,0.0002,2]
[311253049,1704997838371,-275.43827944,0.00020998,3]
[311253051,1704997838380,-1000.0,0.00020998,3]
[311253053,1704997838389,-1000.0,0.00020998,3]
[311253055,1704997838398,-1000.0,0.00020998,3]
[311253057,1704997838406,-1000.0,0.00020998,3]
[311253059,1704997838415,-724.56172056,0.00020998,3]
[311253061,1704997838424,-326.7917286,0.00021,2]
[311253063,1704997838434,-200.0,0.00021,2]
[311253065,1704997838443,-261.71556348,0.00021815,2]
[311253067,1704997838452,-173.61750813,0.00021815,2]
[311253069,1704997838461,-309.66715594,0.00021816,2]
[311253070,1704997838470,-166.666666,0.00021918,2]
[311253072,1704997838479,-156.88951629,0.00022,2]
[311253075,1704997838489,-166.666666,0.00022431,2]
[311253076,1704997838499,-173.17434009,0.0002286,2]
[311253078,1704997838508,-166.666666,0.00022944,2]
[311253080,1704997838517,-2093.45221107,0.00023,2]
[311253082,1704997838526,-9923.17263833,0.00023,2]
[311253084,1704997838535,-546.87419273,0.000231,2]
[311253086,1704997838544,-3212.52525196,0.000231,2]
[311253088,1704997838553,-1822.05331204,0.000231,2]
[311253090,1704997838562,-18868.80777567,0.000231,2]
[311253092,1704997838571,-10281.69514377,0.000231,2]
[311253094,1704997838580,-166.666666,0.00023456,2]
[311253096,1704997838589,-1018.6437214,0.00023518,2]
[311253098,1704997838598,-166.666666,0.00023969,2]
[311253100,1704997838608,-617.37520373,0.00024,2]
[311253102,1704997838617,-4005.39956635,0.00024,2]
[311253104,1704997838627,-166.666666,0.00024482,2]
[311253106,1704997838637,-1592.19669477,0.00024699,2]
[311253108,1704997838647,-687.75702701,0.000247,2]
[311253110,1704997838656,-677.25499859,0.00025,2]
[311253112,1704997838666,-3000.0,0.00025,2]
[311253114,1704997838676,-4711.91259146,0.00025,2]
[311253116,1704997838685,-391.0,0.0002541,7]
[311253118,1704997838695,-200.0,0.00025479,2]
[311253120,1704997838705,-168.204174,0.00025715,2]
[311253122,1704997838714,-525.99300196,0.00026,2]
[311253124,1704997838723,-173.17434009,0.00026722,2]
[311253126,1704997838732,-155.08995217,0.00027,7]
[311253128,1704997838742,-200.0,0.00027951,15]
[311253130,1704997838751,-348.0,0.00027951,15]
[311253132,1704997838760,-225.55666175,0.0002831,2]
[311253134,1704997838769,-9496.36769058,0.00028623,3]
[311253136,1704997838779,-585.133645,0.00028647,2]
[311253139,1704997838789,-155.12254681,0.00029,2]
[311253140,1704997838798,-5807.00559693,0.00029,2]
[311253143,1704997838808,-9100.04106185,0.00029145,4]
[311253145,1704997838817,-620.00668456,0.00029296,2]
[311253146,1704997838827,-152.756675,0.00029311,2]
[311253148,1704997838836,-166.584243,0.00029311,2]
[311253151,1704997838845,-156.401483,0.00029311,2]
[311253153,1704997838854,-271.571883,0.00029311,2]
[311253155,1704997838864,-190.248794,0.00029311,2]
[311253156,1704997838873,-178.64957771,0.00029398,2]
[311253159,1704997838883,-151.06949197,0.00029473,7]
[311253161,1704997838894,-178.64957771,0.00029489,2]
[311253162,1704997838903,-178.64957771,0.00029557,2]
[311253164,1704997838912,-198.7191111,0.00029753,2]
[311253166,1704997838921,-198.7191111,0.00029753,2]
[311253168,1704997838931,-198.7191111,0.00029753,2]
[311253170,1704997838940,-198.7191111,0.00029753,2]
[311253172,1704997838949,-198.7191111,0.00029753,2]
[311253174,1704997838958,-198.7191111,0.00029753,2]
[311253176,1704997838967,-198.7191111,0.00029753,2]
[311253178,1704997838976,-198.7191111,0.00029753,2]
[311253180,1704997838986,-198.7191111,0.00029753,2]
[311253182,1704997838995,-198.7191111,0.00029753,2]
[311253185,1704997839005,-198.7191111,0.00029753,2]
[311253186,1704997839014,-198.7191111,0.00029753,2]
[311253188,1704997839023,-198.7191111,0.00029753,2]
[311253190,1704997839032,-198.7191111,0.00029753,2]
[311253193,1704997839042,-198.7191111,0.00029753,2]
[311253195,1704997839051,-198.7191111,0.00029753,2]
[311253197,1704997839060,-198.7191111,0.00029753,2]
[311253199,1704997839069,-198.7191111,0.00029753,2]
[311253201,1704997839078,-198.7191111,0.00029753,2]
[311253203,1704997839088,-198.7191111,0.00029753,2]
[311253205,1704997839097,-198.7191111,0.00029753,2]
[311253206,1704997839106,-198.7191111,0.00029753,2]
[311253208,1704997839115,-198.7191111,0.00029753,2]
[311253210,1704997839125,-198.7191111,0.00029753,2]
[311253212,1704997839134,-198.7191111,0.00029753,2]
[311253215,1704997839143,-156.401483,0.00029799,2]
[311253217,1704997839152,-178.64957771,0.00029843,2]
[311253219,1704997839161,-178.64957771,0.00029845,2]
[311253220,1704997839170,-4610.74547382,0.00029897,2]
[311253222,1704997839179,-1211.64702523,0.00029998,2]
[311253224,1704997839188,-2805.88372059,0.00029998,2]
[311253226,1704997839197,-946.99985386,0.00029998,2]
[311253229,1704997839206,-155.36019494,0.00029998,2]
[311253230,1704997839215,-309.62844586,0.00029998,2]
[311253233,1704997839225,-855.96729091,0.00029998,2]
[311253234,1704997839234,-250.760786,0.00029998,2]
[311253236,1704997839243,-1171.6067119,0.00029998,2]
[311253238,1704997839252,-553.89631554,0.00029998,2]
[311253240,1704997839261,-155.29263268,0.00029998,2]
[311253242,1704997839271,-13678.83620673,0.00029998,2]
[311253244,1704997839281,-198.15982049,0.00029998,2]
[311253246,1704997839292,-247.01682393,0.00029998,2]
[311253248,1704997839303,-176.02734201,0.00029998,2]
[311253250,1704997839316,-1585.54000309,0.00029998,2]
[311253252,1704997839326,-285.28836048,0.00029998,2]
[311253254,1704997839335,-158.13794531,0.00029998,2]
[311253256,1704997839346,-19655.90106703,0.00029998,2]
[311253258,1704997839355,-285.00006318,0.00029998,2]
[311253260,1704997839364,-223.22198535,0.00029998,2]
[311253262,1704997839373,-15863.581873,0.00029998,2]
[311253263,1704997839383,-308.5803044,0.00029998,2]
[311253264,1704997839393,-263.80331142,0.00029998,2]
[311253265,1704997839403,-871.6110232,0.00029998,2]
[311253266,1704997839412,-309.62844586,0.00029998,2]
[311253267,1704997839421,-230.43179809,0.00029998,2]
[311253268,1704997839431,-297.22918771,0.00029998,2]
[311253269,1704997839440,-469.54906413,0.00029998,2]
[311253270,1704997839449,-586.93974545,0.00029999,2]
[311253271,1704997839458,-309.69031278,0.00029999,2]
[311253272,1704997839467,-55552.1602185,0.0003,15]
[311253273,1704997839477,-463.46661998,0.0003,4]
[311253274,1704997839487,-2151.8403773,0.0003,4]
[311253275,1704997839497,-15040.88068289,0.0003,4]
[311253276,1704997839506,-979.15736031,0.0003,2]
[311253277,1704997839515,-639.80669723,0.0003,4]
[311253279,1704997839525,-6975.26133049,0.0003,4]
[311253282,1704997839534,-1212.61838566,0.0003,2]
[311253285,1704997839544,-198.0,0.0003,2]
[311253288,1704997839556,-1308.0,0.0003,2]
[311253291,1704997839565,-152.756675,0.00030044,2]
[311253294,1704997839575,-151.06949197,0.00030075,4]
[311253297,1704997839584,-6106.46186151,0.00030135,4]
[311253300,1704997839594,-2044.95108617,0.00030135,4]
[311253304,1704997839603,-194.9205767,0.00030135,4]
[311253307,1704997839616,-155.12409928,0.00030135,5]
[311253310,1704997839625,-522.484567,0.00030136,2]
[311253313,1704997839635,-522.484567,0.00030136,2]
[311253316,1704997839645,-2752.415722,0.00030136,2]
[311253319,1704997839655,-2752.415722,0.00030136,2]
[311253322,1704997839669,-2752.415722,0.00030136,2]
[311253325,1704997839678,-2752.415722,0.00030136,2]
[311253328,1704997839688,-209.94571689,0.00030136,3]
[311253331,1704997839697,-500.0,0.00030136,2]
[311253334,1704997839706,-500.0,0.00030136,2]
[311253337,1704997839715,-500.0,0.00030136,2]
[311253340,1704997839724,-500.0,0.00030136,2]
[311253343,1704997839734,-177.50791319,0.00030136,2]
[311253346,1704997839743,-500.0,0.00030136,2]
[311253349,1704997839752,-500.0,0.00030136,2]
[311253352,1704997839761,-500.0,0.00030136,2]
[311253355,1704997839771,-507.3107083,0.00030136,2]
[311253358,1704997839780,-500.0,0.00030136,2]
[311253361,1704997839789,-500.0,0.00030136,2]
[311253363,1704997839798,-500.0,0.00030136,2]
[311253365,1704997839807,-500.0,0.00030136,2]
[311253367,1704997839816,-501.08575708,0.00030136,2]
[311253369,1704997839825,-500.0,0.00030136,2]
[311253371,1704997839834,-256.50796494,0.00030136,2]
[311253373,1704997839843,-448.03715962,0.00030136,2]
[311253375,1704997839852,-500.0,0.00030136,2]
[311253377,1704997839861,-510.53781387,0.00030136,2]
[311253379,1704997839870,-500.0,0.00030136,2]
[311253392,1704997839975,-500.0,0.00030136,2]
[311253394,1704997839984,-500.0,0.00030136,2]
[311253395,1704997839994,-500.0,0.00030136,2]
[311253398,1704997840003,-500.0,0.00030136,2]
[311253400,1704997840013,-500.0,0.00030136,2]
[311253402,1704997840022,-575.77609535,0.00030136,2]
[311253404,1704997840031,-315.45310074,0.00030136,2]
[311253406,1704997840040,-500.0,0.00030136,2]
[311253407,1704997840050,-509.38199583,0.00030136,2]
[311253409,1704997840058,-500.0,0.00030136,2]
[311253411,1704997840067,-596.07060748,0.00030136,2]
[311253413,1704997840077,-614.64769916,0.00030136,2]
[311253415,1704997840086,-500.0,0.00030136,2]
[311253417,1704997840094,-418.33957218,0.00030136,2]
[311253420,1704997840104,-503.44386902,0.00030136,2]
[311253421,1704997840113,-329.4052217,0.00030136,2]
[311253423,1704997840122,-500.0,0.00030136,2]
[311253425,1704997840131,-500.0,0.00030136,2]
[311253427,1704997840140,-500.0,0.00030136,2]
[311253429,1704997840150,-500.0,0.00030136,2]
[311253432,1704997840159,-500.0,0.00030136,2]
[311253434,1704997840168,-500.0,0.00030136,2]
[311253436,1704997840178,-500.0,0.00030136,2]
[311253438,1704997840187,-500.0,0.00030136,2]
[311253440,1704997840196,-500.0,0.00030136,2]
[311253442,1704997840206,-500.0,0.00030136,2]
[311253444,1704997840215,-500.0,0.00030136,2]
[311253446,1704997840224,-500.0,0.00030136,2]
[311253448,1704997840234,-500.0,0.00030136,2]
[311253450,1704997840244,-500.0,0.00030136,2]
[311253452,1704997840254,-500.0,0.00030136,2]
[311253454,1704997840264,-500.0,0.00030136,2]
[311253456,1704997840274,-558.98631898,0.00030136,2]
[311253458,1704997840284,-500.0,0.00030136,2]
[311253460,1704997840294,-500.0,0.00030136,2]
[311253462,1704997840303,-500.0,0.00030136,2]
[311253464,1704997840312,-748.41,0.00030136,2]
[311253466,1704997840320,-500.0,0.00030136,2]
[311253468,1704997840329,-500.0,0.00030136,2]
[311253470,1704997840339,-519.38203127,0.00030136,2]
[311253472,1704997840348,-500.0,0.00030136,2]
[311253474,1704997840358,-500.0,0.00030136,2]
[311253476,1704997840367,-600.0,0.00030136,2]
[311253478,1704997840376,-500.0,0.00030136,2]
[311253480,1704997840385,-500.0,0.00030136,2]
[311253482,1704997840394,-500.0,0.00030136,2]
[311253484,1704997840403,-500.86129898,0.00030136,2]
[311253486,1704997840413,-500.0,0.00030136,2]
[311253488,1704997840421,-500.0,0.00030136,2]
[311253490,1704997840431,-500.0,0.00030136,2]
[311253492,1704997840440,-384.12539335,0.00030136,2]
[311253494,1704997840450,-500.0,0.00030136,2]
[311253496,1704997840459,-500.0,0.00030136,2]
[311253498,1704997840468,-1000.0,0.00030136,2]
[311253500,1704997840477,-154.90705577,0.00030136,2]
[311253502,1704997840486,-535.99,0.00030136,2]
[311253504,1704997840495,-397.33178559,0.00030136,2]
[311253506,1704997840504,-502.49238258,0.00030136,2]
[311253508,1704997840513,-500.0,0.00030136,2]
[311253510,1704997840522,-201.73518869,0.00030136,2]
[311253511,1704997840530,-500.0,0.00030136,2]
[311253513,1704997840539,-500.0,0.00030136,2]
[311253515,1704997840549,-1469.1,0.00030136,2]
[311253517,1704997840558,-603.37503213,0.00030136,2]
[311253519,1704997840567,-362.62491012,0.00030136,2]
[311253521,1704997840575,-500.0,0.00030136,2]
[311253523,1704997840584,-500.0,0.00030136,2]
[311253525,1704997840593,-500.0,0.00030136,2]
[311253527,1704997840602,-500.0,0.00030136,2]
[311253529,1704997840613,-500.0,0.00030136,2]
[311253531,1704997840622,-500.0,0.00030136,2]
[311253534,1704997840632,-500.0,0.00030136,2]
[311253536,1704997840641,-500.0,0.00030136,2]
[311253538,1704997840650,-500.0,0.00030136,2]
[311253540,1704997840660,-500.0,0.00030136,2]
[311253542,1704997840669,-500.0,0.00030136,2]
[311253543,1704997840678,-500.0,0.00030136,2]
[311253545,1704997840687,-500.0,0.00030136,2]
[311253547,1704997840696,-500.0,0.00030136,2]
[311253549,1704997840705,-510.44514775,0.00030136,2]
[311253552,1704997840715,-500.0,0.00030136,2]
[311253553,1704997840724,-500.0,0.00030136,2]
[311253555,1704997840733,-472.92553593,0.00030136,2]
[311253556,1704997840741,-500.0,0.00030136,2]
[311253558,1704997840751,-500.0,0.00030136,2]
[311253560,1704997840759,-186.76567446,0.00030136,2]
[311253561,1704997840768,-500.0,0.00030136,2]
[311253563,1704997840777,-500.0,0.00030136,2]
[311253565,1704997840786,-500.0,0.00030136,2]
[311253566,1704997840795,-511.94,0.00030136,2]
[311253568,1704997840804,-500.0,0.00030136,2]
[311253570,1704997840813,-500.0,0.00030136,2]
[311253571,1704997840822,-173.39777827,0.00030136,2]
[311253573,1704997840830,-500.0,0.00030136,2]
[311253575,1704997840839,-500.0,0.00030136,2]
[311253576,1704997840848,-500.0,0.00030136,2]
[311253578,1704997840857,-500.0,0.00030136,2]
[311253580,1704997840866,-341.22,0.00030136,2]
[311253581,1704997840874,-500.0,0.00030136,2]
[311253583,1704997840884,-500.0,0.00030136,2]
[311253585,1704997840893,-160.73162302,0.00030136,2]
[311253586,1704997840902,-500.0,0.00030136,2]
[311253588,1704997840911,-500.0,0.00030136,2]
[311253590,1704997840920,-1042.74,0.00030136,2]
[311253592,1704997840933,-163.83594978,0.00030136,2]
[311253593,1704997840969,-500.0,0.00030136,2]
[311253595,1704997840979,-500.0,0.00030136,2]
[311253597,1704997840988,-500.0,0.00030136,2]
[311253598,1704997840998,-500.0,0.00030136,2]
[311253600,1704997841007,-197.59577216,0.00030136,2]
[311253602,1704997841017,-500.0,0.00030136,2]
[311253603,1704997841026,-500.0,0.00030136,2]
[311253605,1704997841035,-500.0,0.00030136,2]
[311253607,1704997841044,-500.0,0.00030136,2]
[311253608,1704997841052,-391.20615591,0.00030136,2]
[311253610,1704997841061,-500.0,0.00030136,2]
[311253612,1704997841070,-500.0,0.00030136,2]
[311253614,1704997841082,-500.0,0.00030136,2]
[311253616,1704997841091,-500.0,0.00030136,2]
[311253617,1704997841100,-500.0,0.00030136,2]
[311253619,1704997841109,-500.0,0.00030136,2]
[311253621,1704997841118,-500.0,0.00030136,2]
[311253622,1704997841127,-500.0,0.00030136,2]
[311253624,1704997841136,-204.46283092,0.00030136,2]
[311253626,1704997841145,-500.23813485,0.00030136,2]
[311253628,1704997841154,-500.0,0.00030136,2]
[311253629,1704997841163,-500.0,0.00030136,2]
[311253631,1704997841172,-500.0,0.00030136,2]
[311253633,1704997841181,-504.01104694,0.00030136,2]
[311253635,1704997841192,-500.0,0.00030136,2]
[311253636,1704997841200,-500.0,0.00030136,2]
[311253638,1704997841209,-500.0,0.00030136,2]
[311253640,1704997841218,-500.0,0.00030136,2]
[311253642,1704997841227,-500.0,0.00030136,2]
[311253643,1704997841236,-501.12574447,0.00030136,2]
[311253645,1704997841245,-471.58118241,0.00030136,2]
[311253647,1704997841254,-500.0,0.00030136,2]
[311253648,1704997841263,-500.0,0.00030136,2]
[311253650,1704997841272,-500.0,0.00030136,2]
[311253652,1704997841282,-500.0,0.00030136,2]
[311253654,1704997841290,-500.0,0.00030136,2]
[311253655,1704997841300,-526.31638837,0.00030136,2]
[311253657,1704997841311,-589.65725316,0.00030136,2]
[311253659,1704997841322,-500.0,0.00030136,2]
[311253661,1704997841331,-500.0,0.00030136,2]
[311253663,1704997841340,-500.0,0.00030136,2]
[311253664,1704997841348,-500.0,0.00030136,2]
[311253666,1704997841358,-505.28809719,0.00030136,2]
[311253668,1704997841367,-504.44166871,0.00030136,2]
[311253670,1704997841376,-500.0,0.00030136,2]
[311253671,1704997841385,-500.0,0.00030136,2]
[311253673,1704997841395,-545.24631289,0.00030136,2]
[311253675,1704997841405,-500.0,0.00030136,2]
[311253677,1704997841414,-532.01592707,0.00030136,2]
[311253678,1704997841423,-506.78858546,0.00030136,2]
[311253680,1704997841432,-500.0,0.00030136,2]
[311253682,1704997841441,-518.15706842,0.00030136,2]
[311253683,1704997841450,-362.7169872,0.00030136,2]
[311253685,1704997841459,-510.91,0.00030136,2]
[311253687,1704997841468,-500.0,0.00030136,2]